bitfinex/quotes_ETHUSD_20250524
["timestamp","ask_amount","ask_price","bid_price","bid_amount"]
[1748064629273,0.05,2548.9,2548.8,31.777]
[1748064629460,0.8361,2548.9,2548.8,43.526]
[1748064630561,0.8361,2548.9,2548.7,0.93449]
[1748064630766,0.8361,2548.9,2548.8,11.749]
[1748064631497,0.8361,2548.9,2548.4,1.25849]
[1748064631659,0.8361,2548.9,2548.8,11.749]
[1748064639149,0.8361,2548.9,2548.8,43.525]
[1748064639987,0.05,2548.9,2548.8,43.525]
[1748064641160,0.05,2548.9,2548.8,26.607]
[1748064643285,0.05,2548.9,2548.8,13.42981093]
[1748064644650,0.05,2548.9,2548.8,12.66831093]
[1748064645377,0.05,2548.9,2548.6,8.8128]
[1748064645693,0.05,2548.9,2548.7,11.749]
[1748064648809,0.05,2548.9,2548.5,6.02]
[1748064649024,0.05,2548.9,2548.8,11.748]
[1748064649223,0.05,2548.9,2548.8,43.502]
[1748064650813,0.05,2548.9,2548.8,26.584]
[1748064650982,0.05,2548.9,2548.8,11.748]
[1748064651516,0.05,2548.9,2548.4,2.07129]
[1748064651818,0.05,2548.9,2548.5,11.748]
[1748064653009,0.8778,2548.9,2548.4,0.8128]
[1748064653219,0.8778,2548.9,2548.6,11.748]
[1748064656330,0.05,2548.9,2548.6,11.748]
[1748064659228,0.05,2548.9,2548.7,31.754]
[1748064659791,0.05,2548.9,2548.7,35.70399309]
[1748064662314,0.05,2548.9,2548.7,3.94999309]
[1748064662528,0.05,2548.9,2548.6,11.748]
[1748064662848,0.05,2548.9,2548.7,11.749]
[1748064663004,0.05,2548.9,2548.8,11.749]
[1748064663690,0.05,2548.9,2548.5,6.02]
[1748064663885,0.05,2548.9,2548.6,11.749]
[1748064664138,0.05,2548.9,2548.7,13.5259]
[1748064668831,0.7917,2548.7,2548.0,0.7836]
[1748064669129,0.7917,2548.7,2548.1,43.503]
[1748064669330,0.7917,2548.7,2548.2,26.585]
[1748064670703,0.7917,2548.7,2548.3,11.749]
[1748064675332,0.05,2548.9,2548.3,11.749]
[1748064675333,0.8417,2548.9,2548.3,11.749]
[1748064675537,0.05,2548.9,2548.4,9.99773308]
[1748064675851,0.05,2548.9,2548.4,9.9585]
[1748064679138,0.05,2548.9,2548.6,8.0]
[1748064684315,0.05,2548.9,2548.7,11.749]
[1748064684647,0.05,2548.9,2548.4,15.9785]
[1748064684648,0.05,2548.9,2548.4,7.9785]
[1748064684945,0.05,2548.9,2548.8,11.749]
[1748064687265,0.05,2548.9,2548.8,11.748]
[1748064689272,0.05,2548.9,2548.8,26.564]
[1748064690973,0.05,2548.9,2548.8,11.748]
[1748064693573,0.05,2548.9,2548.8,13.6962]
[1748064698581,0.05,2548.9,2548.8,1.9482]
[1748064698886,0.05,2548.9,2548.8,12.9228]
[1748064699250,0.05,2548.9,2548.8,51.2348]
[1748064699590,0.05,2548.9,2548.8,27.7388]
[1748064700387,0.05,2548.9,2548.8,20.9228]
[1748064702209,0.8211,2548.8,2548.0,0.45964415]
[1748064702426,0.8211,2548.7,2548.1,11.748]
[1748064702624,0.8211,2548.6,2548.1,11.748]
[1748064702999,0.36473108,2548.5,2548.1,0.9219029]
[1748064703324,0.36473108,2548.5,2548.2,11.748]
[1748064703685,0.8211,2548.6,2547.8,1.41286874]
[1748064703999,0.8211,2548.6,2548.3,11.748]
[1748064704625,0.8197,2548.4,2548.3,11.748]
[1748064705525,0.8197,2548.3,2547.8,0.61256874]
[1748064705712,1.35314816,2548.0,2547.8,0.61256874]
[1748064705914,0.7684,2548.1,2547.9,11.748]
[1748064706098,0.7684,2548.1,2548.0,11.748]
[1748064707324,0.7684,2548.1,2548.0,11.749]
[1748064708025,4.69289275,2548.1,2548.0,11.749]
[1748064708330,3.92449275,2548.1,2548.0,11.749]
[1748064708906,0.7977,2548.1,2548.0,11.749]
[1748064709226,0.7977,2548.0,2547.8,0.61256874]
[1748064709534,2.15084816,2548.0,2547.9,43.472]
[1748064710549,2.15084816,2548.0,2547.9,14.802]
[1748064710749,2.15084816,2548.0,2547.9,26.553]
[1748064711102,2.15084816,2548.0,2547.8,0.61256874]
[1748064711508,2.15084816,2548.0,2547.9,11.751]
[1748064713775,2.15084816,2548.0,2547.8,0.61256874]
[1748064713961,2.15084816,2548.0,2547.9,11.752]
[1748064716652,0.7977,2548.0,2547.9,11.752]
[1748064716981,1.35314816,2548.2,2547.9,11.752]
[1748064716982,0.8139,2548.2,2547.9,11.752]
[1748064717637,2.16704816,2548.2,2547.9,11.752]
[1748064719243,2.16704816,2548.2,2548.0,31.729]
[1748064720880,6.0913957,2548.2,2548.0,16.924]
[1748064721182,6.0913957,2548.2,2548.1,26.558]
[1748064721379,0.8139,2548.2,2548.1,26.558]
[1748064723390,0.8139,2548.2,2548.1,11.753]
[1748064723680,2.11974816,2548.4,2548.1,11.753]
[1748064725896,6.04380038,2548.4,2548.1,11.753]
[1748064726266,3.92418978,2548.3,2548.1,11.753]
[1748064726452,1.35314816,2548.2,2548.1,11.753]
[1748064728358,0.8134,2548.1,2547.8,0.61256874]
[1748064728559,0.8134,2548.1,2547.9,11.753]
[1748064729099,8.8134,2548.1,2547.8,0.61256874]
[1748064729301,12.73795937,2548.1,2548.0,16.925]
[1748064729461,3.92464678,2548.0,2547.9,14.805]
[1748064729660,11.92464678,2548.0,2547.8,0.61256874]
[1748064729894,8.0,2547.9,2547.8,0.61256874]
[1748064730060,4.74650081,2547.9,2547.8,12.36556874]
[1748064730260,1.80886314,2547.9,2547.8,12.36556874]
[1748064730509,2.17484816,2547.9,2547.8,0.61256874]
[1748064730691,2.17484816,2547.9,2547.8,12.36556874]
[1748064732102,2.17484816,2547.9,2547.8,0.61256874]
[1748064732277,10.17484816,2547.9,2547.8,12.36556874]
[1748064732677,10.53975338,2547.9,2547.8,12.36556874]
[1748064733471,14.46455419,2547.9,2547.8,12.36556874]
[1748064733675,14.46455419,2547.9,2547.8,0.61256874]
[1748064734080,14.46455419,2547.9,2547.8,12.36656874]
[1748064734286,8.8217,2547.8,2546.9,0.8182]
[1748064734504,1.35314816,2547.5,2547.4,0.61296947]
[1748064734908,1.35314816,2547.5,2546.4,0.45964415]
[1748064735090,0.8217,2547.4,2546.5,12.5722]
[1748064735268,9.18660522,2547.4,2546.6,1.43119379]
[1748064735609,9.18660522,2547.4,2546.7,1.31851938]
[1748064735966,9.18660522,2547.4,2546.8,11.754]
[1748064736597,1.18660522,2547.4,2546.8,11.754]
[1748064736810,0.8217,2547.4,2546.8,11.754]
[1748064738279,1.35314816,2547.5,2546.9,0.8182]
[1748064738612,1.35314816,2547.5,2547.0,11.755]
[1748064739115,1.35314816,2547.5,2547.1,16.927]
[1748064739314,1.35314816,2547.5,2547.1,31.724]
[1748064740603,5.27859034,2547.5,2547.1,31.724]
[1748064741629,0.7826,2547.4,2547.2,26.553]
[1748064741833,0.7826,2547.4,2547.2,11.755]
[1748064746326,0.7826,2547.4,2546.7,0.8263]
[1748064746525,0.7826,2547.4,2546.8,11.756]
[1748064747447,1.35314816,2547.3,2546.7,0.8263]
[1748064747650,1.35314816,2547.3,2546.9,11.756]
[1748064749153,0.7826,2547.4,2547.0,31.728]
[1748064749349,1.35314816,2547.3,2547.0,31.728]
[1748064749530,1.35314816,2547.3,2547.1,26.555]
[1748064753539,1.35314816,2547.3,2547.1,11.756]
[1748064754256,1.35314816,2547.3,2547.2,11.757]
[1748064756462,1.56672298,2547.3,2546.7,0.8263]
[1748064756667,1.56672298,2547.3,2546.8,11.757]
[1748064758065,1.35314816,2547.3,2546.8,11.757]
[1748064759217,1.35314816,2547.3,2546.9,31.729]
[1748064759494,0.7826,2547.4,2546.9,31.729]
[1748064759682,8.0,2547.6,2547.0,0.7745]
[1748064760301,0.36436712,2547.5,2547.0,0.7745]
[1748064761583,0.36436712,2547.4,2547.0,0.7745]
[1748064762583,0.7967,2547.4,2546.8,11.757]
[1748064763518,0.36498999,2547.3,2546.8,11.757]
[1748064763711,0.36498999,2547.3,2546.8,13.07144938]
[1748064764384,0.36498999,2547.2,2546.8,13.07144938]
[1748064765029,0.36498999,2547.2,2546.8,1.31444938]
[1748064765235,0.7857,2546.8,2546.6,0.61299379]
[1748064765528,0.7857,2546.8,2546.7,11.757]
[1748064768034,0.7857,2546.8,2546.6,0.61299379]
[1748064768332,0.7857,2546.8,2546.7,11.757]
[1748064769336,0.7857,2546.8,2546.7,43.476]
[1748064771433,1.35314816,2546.9,2546.7,43.476]
[1748064771793,0.8238,2547.0,2546.7,11.757]
[1748064773532,4.75002094,2547.0,2546.7,11.757]
[1748064773703,1.35314816,2546.9,2546.7,11.757]
[1748064774101,1.35314816,2546.9,2546.8,11.758]
[1748064774419,1.35314816,2546.9,2546.6,0.61299379]
[1748064774624,1.35314816,2546.9,2546.8,11.758]
[1748064775001,1.71721095,2546.9,2546.8,11.758]
[1748064778340,1.71721095,2546.9,2546.6,0.61299379]
[1748064778541,10.14164816,2546.7,2546.6,0.61299379]
[1748064778747,1.15256279,2546.9,2546.6,12.37199379]
[1748064779244,1.15256279,2546.9,2546.7,31.722]
[1748064779634,1.35314816,2547.0,2546.7,31.722]
[1748064780753,5.27934297,2547.0,2546.7,31.722]
[1748064781960,0.36389547,2546.9,2546.7,31.722]
[1748064782653,0.36389547,2546.9,2546.7,0.7686]
[1748064782827,0.36389547,2547.4,2546.7,0.7686]
[1748064783034,0.36389547,2547.4,2546.7,2.08265938]
[1748064783229,1.35314816,2547.3,2546.7,2.08265938]
[1748064783960,5.27891675,2547.3,2546.7,2.08265938]
[1748064784128,1.35314816,2547.3,2546.7,0.7686]
[1748064786582,9.35314816,2547.5,2546.7,0.7686]
[1748064786723,0.3640158,2547.4,2546.7,0.7686]
[1748064787774,0.3640158,2547.3,2546.7,0.7686]
[1748064788741,9.35314816,2547.5,2546.7,0.7686]
[1748064788943,5.27857576,2547.5,2546.7,0.7686]
[1748064789140,5.27857576,2547.5,2546.8,31.72]
[1748064789669,0.36406556,2547.4,2546.8,31.72]
[1748064790266,0.36406556,2547.3,2546.8,31.72]
[1748064791153,5.27857576,2547.5,2546.8,31.72]
[1748064791356,5.27857576,2547.5,2546.8,14.788]
[1748064791879,1.35314816,2547.3,2546.8,14.788]
[1748064793364,1.35314816,2547.3,2546.7,0.7686]
[1748064796851,1.35314816,2547.3,2546.8,11.758]
[1748064799279,1.35314816,2547.3,2546.9,31.707]
[1748064801154,0.7859,2547.2,2547.0,26.534]
[1748064801773,0.7859,2547.2,2547.0,14.776]
[1748064801976,0.7859,2547.2,2547.1,11.758]
[1748064802779,1.15010494,2547.2,2547.1,11.758]
[1748064804283,1.15010494,2547.2,2547.1,11.757]
[1748064804486,1.15010494,2547.2,2546.7,1.38166035]
[1748064804691,1.35314816,2547.1,2546.8,11.757]
[1748064805992,1.35314816,2547.1,2546.7,0.61306035]
[1748064806150,1.35314816,2547.1,2546.9,11.757]
[1748064809235,1.35314816,2547.1,2547.0,31.707]
[1748064810077,1.71766541,2547.1,2547.0,31.707]
[1748064810406,1.71766541,2547.1,2547.0,43.465]
[1748064810711,1.71766541,2547.1,2547.0,26.534]
[1748064811474,1.71766541,2547.1,2547.0,11.758]
[1748064811725,1.96802195,2547.1,2547.0,11.758]
[1748064812123,0.36451725,2547.1,2547.0,11.758]
[1748064812324,0.779,2547.5,2547.0,11.758]
[1748064812617,1.35314816,2547.7,2547.0,11.758]
[1748064812807,8.0,2547.6,2547.0,11.758]
[1748064812987,1.35314816,2547.5,2547.0,11.758]
[1748064813519,0.36473985,2547.4,2547.0,11.758]
[1748064813886,1.35314816,2547.3,2546.7,1.42376035]
[1748064814206,1.35314816,2547.3,2546.8,11.758]
[1748064814376,1.35314816,2547.3,2546.7,1.42376035]
[1748064814581,0.36473985,2547.2,2546.9,11.758]
[1748064814782,0.36473985,2547.2,2546.7,1.42376035]
[1748064814783,0.36473985,2547.2,2547.0,11.757]
[1748064815635,0.36473985,2547.1,2547.0,11.757]
[1748064819257,0.36473985,2547.1,2547.0,43.464]
[1748064821709,0.36473985,2547.1,2547.0,26.533]
[1748064823765,0.36473985,2547.1,2547.0,11.757]
[1748064825729,0.36473985,2547.1,2547.0,12.5351]
[1748064826065,0.36473985,2547.1,2547.0,13.78861]
[1748064826224,0.36473985,2547.1,2547.0,12.5351]
[1748064827029,1.35314816,2547.5,2547.0,12.5351]
[1748064827970,0.36479195,2547.4,2547.0,12.5351]
[1748064828967,0.36479195,2547.3,2547.0,12.5351]
[1748064829143,0.36479195,2547.3,2547.1,31.695]
[1748064829673,0.36479195,2547.2,2547.1,31.695]
[1748064831339,0.36479195,2547.2,2547.1,14.764]
[1748064832574,0.36479195,2547.2,2546.8,0.7572]
[1748064832761,0.36479195,2547.2,2546.9,11.758]
[1748064833143,1.35314816,2547.3,2546.9,11.758]
[1748064833378,1.56464298,2547.3,2546.9,11.758]
[1748064834078,8.0,2547.2,2546.9,11.758]
[1748064834376,0.36488478,2547.1,2546.8,0.7572]
[1748064834685,0.36488478,2547.1,2547.0,11.758]
[1748064834859,8.36488478,2547.1,2547.0,11.758]
[1748064835259,8.0,2547.2,2547.0,11.758]
[1748064836584,8.0,2547.4,2547.0,11.758]
[1748064836787,10.11494816,2547.6,2547.0,11.758]
[1748064836983,2.11494816,2547.6,2547.0,11.758]
[1748064837186,2.11494816,2547.6,2547.1,0.7572]
[1748064837187,0.7618,2547.6,2547.1,0.7572]
[1748064837363,14.04027731,2547.6,2547.1,0.7572]
[1748064838194,0.36487538,2547.5,2547.1,0.7572]
[1748064839194,0.36487538,2547.4,2547.2,31.695]
[1748064840057,0.36487538,2547.3,2547.2,31.695]
[1748064841311,1.35314816,2547.6,2547.2,31.695]
[1748064841512,1.35314816,2547.6,2547.2,14.764]
[1748064841688,1.35314816,2547.6,2547.1,0.7572]
[1748064842091,0.36476114,2547.5,2547.1,0.7572]
[1748064843217,0.36476114,2547.4,2547.1,0.7572]
[1748064844218,1.35314816,2547.6,2547.1,0.7572]
[1748064844893,0.36473929,2547.5,2547.1,0.7572]
[1748064845913,0.36473929,2547.4,2547.1,0.7572]
[1748064846810,1.35314816,2547.6,2547.1,0.7572]
[1748064847820,5.27842514,2547.6,2547.1,0.7572]
[1748064847979,0.36478329,2547.5,2547.1,0.7572]
[1748064848924,0.36478329,2547.4,2547.1,0.7572]
[1748064849116,0.36478329,2547.4,2547.2,31.694]
[1748064849618,0.36478329,2547.3,2547.2,31.694]
[1748064850486,0.36478329,2547.3,2547.2,14.764]
[1748064850995,1.35314816,2547.6,2547.2,14.764]
[1748064851199,1.35314816,2547.6,2547.1,0.7572]
[1748064851819,0.36481323,2547.5,2547.1,0.7572]
[1748064853246,0.36481323,2547.4,2547.1,0.7572]
[1748064854248,0.36481323,2547.3,2547.1,0.7572]
[1748064855019,0.36481323,2547.3,2547.1,2.00872]
[1748064855226,0.7822,2547.8,2547.1,2.00872]
[1748064856495,0.36496763,2547.7,2547.1,2.00872]
[1748064857533,0.36496763,2547.6,2547.1,2.00872]
[1748064858353,1.35314816,2547.7,2547.1,2.00872]
[1748064858533,1.35314816,2547.7,2547.2,1.05860676]
[1748064859160,1.35314816,2547.7,2547.3,31.68]
[1748064860563,0.36467271,2547.6,2547.3,31.68]
[1748064861259,0.36467271,2547.6,2547.2,1.05860676]
[1748064861419,1.35314816,2547.5,2547.3,11.756]
[1748064863751,1.35314816,2547.5,2547.1,0.7572]
[1748064864067,1.35314816,2547.3,2546.8,1.43792665]
[1748064864270,1.35314816,2547.3,2547.2,11.756]
[1748064867636,1.71790566,2547.3,2547.2,11.756]
[1748064869181,1.71790566,2547.3,2547.2,43.435]
[1748064869879,0.3647575,2547.3,2547.2,43.435]
[1748064870377,1.35314816,2547.5,2547.2,43.435]
[1748064871074,1.35314816,2547.7,2547.3,0.7725]
[1748064871279,2.13214816,2547.9,2547.3,0.7725]
[1748064871463,1.35314816,2547.9,2547.3,0.7725]
[1748064872372,0.36485918,2547.8,2547.3,0.7725]
[1748064872544,0.36485918,2547.8,2547.4,1.25285]
[1748064872745,0.36485918,2547.8,2547.3,0.7725]
[1748064873285,0.36485918,2547.7,2547.3,0.7725]
[1748064873982,1.35314816,2547.9,2547.3,0.7725]
[1748064874785,0.36473014,2547.8,2547.3,0.7725]
[1748064875783,1.35314816,2547.9,2547.3,0.7725]
[1748064875942,1.35314816,2547.9,2547.4,1.25285]
[1748064877774,0.36467974,2547.8,2547.4,1.25285]
[1748064878990,1.35314816,2547.9,2547.4,1.25285]
[1748064879151,1.35314816,2547.9,2547.5,31.678]
[1748064879592,1.35314816,2547.9,2547.6,0.8313]
[1748064880685,1.35314816,2548.1,2547.6,0.8313]
[1748064880984,0.36475149,2548.0,2547.6,0.8313]
[1748064881189,0.36475149,2548.0,2547.6,1.039715]
[1748064882092,0.36475149,2547.9,2547.6,1.039715]
[1748064883090,1.35314816,2548.1,2547.6,1.039715]
[1748064884098,0.364639,2548.0,2547.6,1.039715]
[1748064884996,0.364639,2547.9,2547.6,1.039715]
[1748064886106,1.35314816,2548.1,2547.6,1.039715]
[1748064886962,0.3645702,2548.0,2547.6,1.039715]
[1748064887569,0.3645702,2548.0,2547.7,0.7533]
[1748064888077,1.35314816,2548.3,2547.7,0.7533]
[1748064889203,1.35314816,2548.3,2547.8,31.66]
[1748064889378,1.35314816,2548.3,2547.8,34.9221715]
[1748064889704,0.36444678,2548.2,2547.8,34.9221715]
[1748064890722,1.35314816,2548.3,2547.8,34.9221715]
[1748064891321,1.35314816,2548.3,2547.8,17.9951715]
[1748064891479,1.35314816,2548.3,2547.8,14.733]
[1748064892221,1.35314816,2548.3,2547.7,0.7533]
[1748064893004,0.36435972,2548.2,2547.7,0.7533]
[1748064894036,1.35314816,2548.3,2547.7,0.7533]
[1748064896534,1.35314816,2548.1,2547.7,0.7533]
[1748064896725,1.35314816,2548.1,2547.8,11.754]
[1748064899200,1.35314816,2548.1,2547.9,16.926]
[1748064899424,1.35314816,2548.1,2547.9,43.412]
[1748064900443,1.35314816,2548.1,2547.9,16.926]
[1748064900652,13.27764091,2548.1,2548.0,14.732]
[1748064900836,8.8091,2547.8,2547.2,0.7759]
[1748064901156,1.35314816,2547.7,2547.3,11.754]
[1748064902442,1.35314816,2547.7,2547.3,12.59924551]
[1748064903265,1.35314816,2547.7,2547.3,0.84524551]
[1748064903425,1.35314816,2547.7,2547.4,11.754]
[1748064903860,0.8091,2547.8,2547.2,0.7759]
[1748064904061,0.8091,2547.8,2547.3,11.754]
[1748064905863,0.36471375,2547.7,2547.3,11.754]
[1748064906568,0.36471375,2547.7,2547.4,0.7707]
[1748064906732,0.36471375,2547.7,2547.5,1.25247]
[1748064906928,2.14274816,2548.2,2547.5,1.25247]
[1748064908062,0.36473733,2548.1,2547.5,1.25247]
[1748064909257,0.36473733,2548.0,2547.6,31.659]
[1748064910168,2.14274816,2548.2,2547.6,31.659]
[1748064911570,0.36463874,2548.1,2547.6,35.027217]
[1748064912562,0.36463874,2548.0,2547.6,3.368217]
[1748064912746,0.36463874,2548.0,2547.5,1.25247]
[1748064913675,1.35314816,2547.6,2547.1,0.61288603]
[1748064914031,2.11804816,2547.6,2547.2,11.754]
[1748064914234,2.11804816,2547.6,2547.1,0.61288603]
[1748064914449,1.35314816,2547.2,2547.1,0.61288603]
[1748064914673,1.35314816,2547.2,2547.1,12.36688603]
[1748064914975,1.35314816,2547.4,2547.1,12.36688603]
[1748064915267,0.7649,2547.6,2547.1,13.60357463]
[1748064915695,2.11804816,2547.6,2547.1,13.60357463]
[1748064915894,2.11804816,2547.6,2547.1,12.36688603]
[1748064916899,0.36390599,2547.5,2547.1,12.36688603]
[1748064918202,1.35314816,2547.4,2547.1,0.61288603]
[1748064918360,1.35314816,2547.2,2547.1,0.61288603]
[1748064918700,1.35314816,2547.2,2547.1,12.36788603]
[1748064919275,1.35314816,2547.2,2547.1,44.01688603]
[1748064919987,1.35314816,2547.4,2547.1,44.01688603]
[1748064920386,1.35314816,2547.4,2547.1,27.08888603]
[1748064920595,5.27875476,2547.4,2547.2,11.755]
[1748064921299,1.35314816,2547.4,2547.2,11.755]
[1748064922712,1.35314816,2547.4,2547.3,11.756]
[1748064922918,1.71631717,2547.4,2547.3,11.756]
[1748064923111,3.92587939,2547.2,2547.1,0.61288603]
[1748064923314,1.35314816,2547.2,2547.1,12.36888603]
[1748064923774,1.71631717,2547.2,2547.1,12.36888603]
[1748064924394,5.64219656,2547.2,2547.1,12.36888603]
[1748064927313,13.64219656,2547.2,2547.1,11.756]
[1748064929121,1.71631717,2547.2,2547.1,43.41]
[1748064929822,5.64219656,2547.2,2547.1,43.411]
[1748064930022,5.64219656,2547.2,2547.1,31.654]
[1748064930200,5.64219656,2547.2,2547.1,43.411]
[1748064931830,9.71631717,2547.2,2546.6,0.7798]
[1748064932013,1.35314816,2546.7,2546.3,0.8051]
[1748064932213,1.35314816,2546.5,2546.1,0.8551]
[1748064932399,1.35314816,2546.5,2546.4,11.758]
[1748064933137,3.92733901,2546.3,2546.1,0.05]
[1748064933289,1.82877206,2546.2,2546.1,0.05]
[1748064933488,1.35314816,2546.2,2546.1,11.808]
[1748064933933,13.28056941,2546.2,2546.1,11.808]
[1748064934302,13.64305006,2546.2,2546.1,11.808]
[1748064935190,13.28056941,2546.2,2546.1,11.808]
[1748064936929,13.28056941,2546.2,2546.1,0.05]
[1748064937236,13.28056941,2546.2,2546.1,11.809]
[1748064939113,13.28056941,2546.2,2546.1,43.472]
[1748064942735,13.28056941,2546.2,2546.1,0.05]
[1748064942938,13.28056941,2546.2,2546.1,11.811]
[1748064943342,14.63586941,2546.2,2546.1,0.05]
[1748064943547,17.35011605,2546.2,2546.1,11.811]
[1748064945442,17.35011605,2546.2,2546.1,0.05]
[1748064945647,17.35011605,2546.2,2546.1,11.812]
[1748064946010,17.35011605,2546.2,2546.1,0.05]
[1748064946348,17.35011605,2546.2,2546.1,11.812]
[1748064948646,27.54011605,2546.2,2546.1,11.812]
[1748064949152,0.7863,2545.5,2545.1,0.05]
[1748064949356,3.92865561,2545.4,2545.2,43.424]
[1748064949527,4.71488356,2545.5,2545.2,43.424]
[1748064949726,4.71484403,2545.5,2545.2,43.424]
[1748064950051,0.7863,2545.9,2545.2,44.1831]
[1748064950254,4.47798486,2545.9,2545.2,44.1831]
[1748064950449,8.0,2545.7,2545.2,44.1831]
[1748064950653,1.35314816,2545.6,2545.2,44.1831]
[1748064951124,1.35314816,2545.6,2545.2,27.2431]
[1748064951719,0.7863,2546.1,2545.2,29.21331]
[1748064951917,1.35314816,2546.0,2545.3,0.7983865]
[1748064952127,1.35314816,2546.0,2545.3,0.7591]
[1748064952944,1.35314816,2546.1,2545.3,0.7591]
[1748064953145,1.35314816,2546.0,2545.5,0.7591]
[1748064953457,1.35314816,2546.1,2545.5,0.7591]
[1748064954655,1.35314816,2545.9,2545.5,0.7591]
[1748064954859,1.35314816,2545.7,2545.4,1.25221]
[1748064955160,1.35314816,2545.7,2545.6,11.764]
[1748064957453,1.35314816,2545.9,2545.7,0.8117]
[1748064959265,1.35314816,2545.9,2545.8,31.662]
[1748064959754,6.0590322,2545.9,2545.8,43.426]
[1748064959956,6.42024593,2545.9,2545.8,43.426]
[1748064960158,5.06709777,2545.9,2545.8,43.426]
[1748064963229,0.36121373,2545.9,2545.8,26.485]
[1748064963669,0.36121373,2545.9,2545.8,11.764]
[1748064964280,1.71436189,2545.9,2545.8,11.764]
[1748064964475,0.36121373,2545.9,2545.8,11.764]
[1748064964761,0.36121373,2546.4,2545.8,12.9404]
[1748064964921,0.36121373,2546.4,2545.9,0.777]
[1748064965453,0.36121373,2546.3,2545.9,0.777]
[1748064966064,0.36121373,2546.3,2546.0,11.765]
[1748064966065,1.71436189,2546.3,2546.0,11.765]
[1748064966472,1.35314816,2546.1,2546.0,11.765]
[1748064966769,1.35314816,2546.3,2546.0,11.765]
[1748064968272,1.35529459,2546.3,2546.0,11.765]
[1748064968947,1.35529459,2546.3,2546.1,11.764]
[1748064969261,1.35529459,2546.3,2546.2,31.661]
[1748064969759,1.71829519,2546.3,2546.2,31.661]
[1748064970672,1.35529459,2546.3,2546.2,31.661]
[1748064970873,1.71829519,2546.5,2546.2,36.38799309]
[1748064971168,1.71829519,2546.5,2546.2,19.44799309]
[1748064971368,1.71829519,2546.5,2546.2,15.498]
[1748064971672,1.71829519,2546.5,2546.2,0.777]
[1748064972032,0.3630006,2546.4,2546.2,0.777]
[1748064972773,1.35529459,2546.5,2546.2,0.777]
[1748064976976,1.35529459,2546.6,2546.2,0.777]
[1748064977282,1.35529459,2546.8,2546.3,0.55]
[1748064977843,0.36286443,2546.7,2546.3,0.55]
[1748064978475,1.35529459,2546.8,2546.3,0.55]
[1748064979246,1.35529459,2546.8,2546.4,31.657]
[1748064980069,1.35529459,2546.6,2546.4,16.938]
[1748064980268,1.35529459,2546.6,2546.5,26.474]
[1748064980587,5.28217667,2546.6,2546.5,26.474]
[1748064980783,5.64515767,2546.6,2546.5,26.474]
[1748064981170,1.71827559,2546.6,2546.5,26.474]
[1748064981571,1.71827559,2546.6,2546.5,11.762]
[1748064982281,1.71827559,2546.6,2545.9,1.16888108]
[1748064982282,3.92695857,2546.5,2545.9,1.16888108]
[1748064982485,1.35529459,2546.3,2546.0,11.762]
[1748064982785,1.35529459,2546.3,2546.1,0.39275711]
[1748064982986,1.35529459,2546.3,2546.0,11.762]
[1748064983347,1.35529459,2546.3,2546.1,0.39275368]
[1748064983776,1.35529459,2546.4,2546.2,0.39274212]
[1748064983964,1.35529459,2546.4,2546.0,11.762]
[1748064984164,0.36315619,2546.3,2546.0,11.762]
[1748064984378,0.36315619,2546.3,2546.1,0.39275666]
[1748064985201,1.35529459,2546.4,2546.1,0.39275666]
[1748064985794,1.35529459,2546.4,2546.2,0.39273248]
[1748064986164,0.2,2546.9,2546.3,0.3927267]
[1748064986501,1.35529459,2546.7,2546.4,0.39271127]
[1748064987198,0.36324887,2546.6,2546.4,0.39271127]
[1748064988001,0.36324887,2546.6,2546.3,0.7703]
[1748064988163,0.36324887,2546.5,2546.3,0.7703]
[1748064988364,0.36324887,2546.5,2546.2,0.39273444]
[1748064989061,0.36324887,2546.4,2546.2,0.39273444]
[1748064989300,0.36324887,2546.4,2546.3,31.65]
[1748064989663,0.36324887,2546.4,2546.3,32.8232267]
[1748064989867,0.36324887,2546.4,2546.3,36.69482281]
[1748064990175,0.36324887,2546.8,2546.5,0.39268534]
[1748064991000,0.36324887,2546.7,2546.5,0.39268534]
[1748064991769,0.36324887,2546.7,2546.6,0.39268043]
[1748064992204,0.36324887,2546.7,2546.5,0.39268741]
[1748064993006,0.36324887,2546.6,2546.5,0.39268741]
[1748064993805,0.36324887,2546.6,2546.5,1.15427721]
[1748064995182,0.36324887,2546.6,2546.5,2.01414418]
[1748064995475,0.36324887,2546.6,2546.5,1.97487721]
[1748064995668,0.2,2546.9,2546.8,0.39264959]
[1748064995869,0.2,2546.9,2546.8,12.97424959]
[1748064996108,0.2,2546.9,2546.8,14.36594081]
[1748064997332,0.2,2546.9,2546.8,14.91594081]
[1748064999114,0.2,2546.9,2546.8,46.56194081]
[1748065000619,0.2,2546.9,2546.8,46.01194081]
[1748065001321,0.2,2546.9,2546.8,2.60494081]
[1748065001516,0.2,2546.9,2546.8,1.21324959]
[1748065001699,0.2,2546.9,2546.8,12.97324959]
[1748065002027,0.2,2546.9,2546.6,0.7843]
[1748065002181,0.2,2546.9,2546.7,11.76]
[1748065003107,0.36353268,2546.8,2546.7,11.76]
[1748065006427,0.36353268,2546.8,2546.7,12.15266501]
[1748065006626,0.2,2546.9,2546.7,12.15266501]
[1748065007031,0.2,2546.9,2546.7,11.76]
[1748065008626,0.2,2546.9,2546.7,12.15266166]
[1748065009133,0.2,2546.9,2546.8,31.645]
[1748065010139,0.56334771,2546.9,2546.8,31.645]
[1748065011035,0.56334771,2546.9,2546.8,0.39264959]
[1748065011234,0.56334771,2546.9,2546.8,1.15534959]
[1748065011537,0.2,2546.9,2546.8,1.15534959]
[1748065013325,0.2,2546.9,2546.8,0.7627]
[1748065013638,0.2,2546.9,2546.8,11.76]
[1748065014653,0.2,2546.9,2546.8,12.15264959]